bitfinex-derivatives/quotes_ETHF0:USTF0_20240925
["timestamp","ask_amount","ask_price","bid_price","bid_amount"]
[1727255984336,2.76054,2627.7,2627.6,1.1333]
[1727255984530,6.1856,2627.7,2627.3,1.87508654]
[1727255984730,0.38057,2627.5,2627.3,1.15039]
[1727255985739,0.75946,2627.6,2627.3,1.15039]
[1727255988944,0.38058,2627.4,2627.3,0.7698]
[1727255989140,2.76058,2627.4,2627.3,0.7698]
[1727255989443,2.76058,2627.4,2626.9,4.70229654]
[1727255989444,0.38061,2627.2,2626.9,4.70229654]
[1727255989649,2.76061,2627.2,2627.0,1.1748]
[1727255990150,0.38062,2627.1,2627.0,1.1748]
[1727255990337,2.76062,2627.2,2627.0,1.1748]
[1727255992248,3.24091688,2627.3,2627.0,1.55544]
[1727255992556,5.25570688,2627.4,2627.1,0.38062]
[1727255992739,0.3806,2627.3,2627.1,0.38062]
[1727255992940,5.25570688,2627.4,2627.0,1.1748]
[1727255993547,5.25570688,2627.4,2627.1,0.38061]
[1727255995044,2.76059,2627.4,2627.1,0.38061]
[1727255995650,0.38059,2627.4,2627.2,0.38061]
[1727255996053,0.38059,2627.4,2627.3,0.4041]
[1727255996255,3.6102,2627.5,2627.3,0.4041]
[1727255996554,3.6102,2627.5,2627.4,0.7811]
[1727255996852,3.99077,2627.5,2627.4,0.7811]
[1727255997152,7.79637,2627.5,2627.4,0.7811]
[1727255998647,3.99077,2627.5,2627.4,0.7811]
[1727256000849,4.94219,2627.5,2627.4,0.7811]
[1727256001746,0.38061,2627.2,2627.1,0.386]
[1727256001946,0.38061,2627.2,2627.1,0.7804]
[1727256003945,0.38061,2627.2,2626.7,1.49449654]
[1727256003946,0.38067,2626.8,2626.7,1.49449654]
[1727256004144,2.38,2626.9,2626.6,0.7774]
[1727256004349,0.38067,2626.8,2626.6,0.7774]
[1727256004650,0.38067,2626.8,2626.6,0.3808]
[1727256004651,2.76068,2626.7,2626.6,0.3808]
[1727256004956,3.15598,2626.7,2626.6,0.3808]
[1727256005346,0.3953,2626.7,2626.6,0.3808]
[1727256005549,3.58848,2626.8,2626.6,0.3808]
[1727256005945,3.58848,2626.8,2626.7,0.364]
[1727256006350,7.39568,2626.8,2626.7,0.364]
[1727256007453,0.38068,2626.7,2626.6,0.3808]
[1727256007655,0.76998,2626.7,2626.6,0.3808]
[1727256010045,3.58848,2626.8,2626.6,0.3808]
[1727256010247,3.2078,2626.8,2626.6,0.3808]
[1727256010456,0.38068,2626.7,2626.6,0.3808]
[1727256013745,2.7803,2626.9,2626.6,0.3808]
[1727256015353,0.38068,2626.7,2626.6,0.3808]
[1727256015962,0.38068,2626.8,2626.6,0.76149]
[1727256016154,0.38068,2626.8,2626.6,0.3808]
[1727256017549,0.38068,2626.8,2626.6,0.7615]
[1727256018855,0.38068,2626.7,2626.6,0.7615]
[1727256020246,0.38068,2626.7,2626.6,0.3808]
[1727256021459,0.38068,2626.7,2626.6,0.7615]
[1727256021760,0.38068,2626.7,2626.6,0.3808]
[1727256024356,2.43239,2626.7,2626.6,0.3808]
[1727256024751,1.48068,2626.7,2626.6,0.3808]
[1727256028567,0.38071,2626.5,2626.4,0.3671]
[1727256028753,1.48071,2626.5,2626.4,0.3671]
[1727256030865,0.38071,2626.5,2626.4,0.3671]
[1727256031257,4.68851,2626.5,2626.4,0.3671]
[1727256033564,1.48071,2626.5,2626.4,0.3671]
[1727256042972,2.43249,2626.5,2626.4,0.3671]
[1727256043273,1.33255,2626.4,2626.3,0.3701]
[1727256043570,1.69725,2626.4,2626.3,0.3701]
[1727256043781,5.50445,2626.4,2626.3,0.3701]
[1727256046978,1.33264,2626.2,2626.1,0.3954]
[1727256047171,4.68855,2626.2,2626.1,0.7951]
[1727256047367,0.38077,2626.1,2625.9,0.9956378]
[1727256047570,0.38077,2626.1,2625.8,2.1650378]
[1727256047571,1.48078,2626.0,2625.8,2.1650378]
[1727256047775,5.28878,2626.0,2625.8,2.1650378]
[1727256048082,7.3966,2625.9,2625.8,1.1694]
[1727256051784,7.3966,2625.9,2625.8,0.7841]
[1727256053979,3.5886,2625.9,2625.8,0.7841]
[1727256054182,7.3966,2625.9,2625.8,0.7841]
[1727256054771,0.38084,2625.6,2625.5,0.3831]
[1727256054975,1.48084,2625.6,2625.5,0.3831]
[1727256055379,4.68864,2625.6,2625.5,0.3831]
[1727256055781,4.3078,2625.6,2625.5,0.3831]
[1727256055977,1.1,2625.6,2625.5,0.3831]
[1727256056184,1.48084,2625.6,2625.5,0.3831]
[1727256059778,4.68864,2625.6,2625.5,0.3831]
[1727256060593,4.3078,2625.6,2625.5,0.3831]
[1727256061585,3.2078,2625.6,2625.5,0.76396]
[1727256061774,3.2078,2625.9,2625.6,0.38084]
[1727256061978,3.2078,2625.9,2625.5,0.76395]
[1727256061979,1.1,2625.8,2625.5,0.76395]
[1727256062184,1.1,2625.7,2625.5,0.3831]
[1727256062378,1.48083,2625.7,2625.5,0.3831]
[1727256062583,1.1,2625.7,2625.5,0.3831]
[1727256062887,1.48083,2625.7,2625.5,0.3831]
[1727256063293,0.38084,2625.6,2625.5,0.3831]
[1727256063477,1.48083,2625.7,2625.5,0.3831]
[1727256063676,0.38084,2625.6,2625.5,0.3831]
[1727256063878,1.48084,2625.7,2625.5,0.3831]
[1727256064773,0.38084,2625.6,2625.5,0.3831]
[1727256065183,3.58864,2625.6,2625.5,0.3831]
[1727256066089,3.2078,2625.6,2625.5,0.3831]
[1727256068189,3.58864,2625.6,2625.5,0.3831]
[1727256069684,3.96614,2625.6,2625.5,0.3831]
[1727256070086,3.96614,2625.6,2625.4,0.7694]
[1727256070087,0.38086,2625.5,2625.4,0.7694]
[1727256070386,1.48086,2625.5,2625.4,0.7694]
[1727256079599,4.68865,2625.6,2625.4,1.15027]
[1727256079803,4.3078,2625.6,2625.5,0.38086]
[1727256079993,4.68864,2625.6,2625.5,0.38086]
[1727256080191,0.3808,2625.9,2625.7,0.38082]
[1727256080390,1.4808,2625.9,2625.8,0.7774]
[1727256080795,2.8146,2625.9,2625.8,0.7774]
[1727256080995,3.2078,2626.0,2625.8,1.15821]
[1727256081296,3.2078,2626.0,2625.9,0.3808]
[1727256081493,3.2078,2626.0,2625.9,4.5696]
[1727256081891,1.1,2626.2,2626.0,0.38078]
[1727256082399,3.2078,2626.4,2626.1,0.38076]
[1727256082400,3.58853,2626.4,2626.1,0.38076]
[1727256082599,1.1,2626.2,2626.0,0.38078]
[1727256083403,1.1,2626.2,2625.9,0.3808]
[1727256083404,1.48076,2626.2,2625.9,0.76159]
[1727256083594,1.1,2626.0,2625.9,0.76159]
[1727256083995,1.1,2626.0,2625.9,4.56959]
[1727256084195,1.1,2626.2,2626.0,0.38077]
[1727256084398,1.1,2626.2,2626.1,0.38077]
[1727256084798,1.1,2626.2,2626.0,0.38077]
[1727256085592,1.48076,2626.2,2625.9,0.76159]
[1727256085791,1.1,2626.0,2625.9,0.76159]
[1727256086493,1.1,2626.0,2625.9,0.3808]
[1727256086695,1.48078,2626.0,2625.9,0.3808]
[1727256089806,1.1,2626.0,2625.9,0.3808]
[1727256090201,1.48078,2626.0,2625.9,0.3808]
[1727256093093,1.88468,2626.0,2625.9,0.3808]
[1727256097407,0.3808,2625.9,2625.8,0.7774]
[1727256097910,0.3808,2625.9,2625.8,1.1517]
[1727256100205,1.3328,2625.9,2625.8,0.7774]
[1727256100699,0.3808,2625.9,2625.8,0.7774]
[1727256105904,1.3328,2625.9,2625.8,0.7774]
[1727256106310,1.3329,2625.7,2625.6,0.3728]
[1727256106504,5.6407,2625.7,2625.6,0.3728]
[1727256107608,0.38084,2625.6,2625.5,0.7655]
[1727256107913,0.78424,2625.6,2625.5,0.7655]
[1727256109216,0.78424,2625.6,2625.1,0.38091]
[1727256109217,0.95216,2625.5,2625.1,0.38091]
[1727256109417,0.95216,2625.5,2625.2,0.7412]
[1727256109418,0.38088,2625.4,2625.2,0.7412]
[1727256110012,0.4034,2625.6,2625.2,0.7412]
[1727256110013,1.1,2625.3,2625.2,1.1221]
[1727256112514,1.48088,2625.3,2625.2,1.1221]
[1727256112711,0.38088,2625.4,2625.3,0.38088]
[1727256112904,0.38086,2625.5,2625.4,0.38087]
[1727256113504,0.38086,2625.5,2625.4,0.74517]
[1727256113709,0.38086,2625.5,2625.4,0.3643]
[1727256117018,0.38086,2625.5,2625.4,1.7408078]
[1727256117423,0.38086,2625.5,2625.4,0.74517]
[1727256117725,0.38086,2625.5,2625.4,0.3643]
[1727256118224,0.38086,2625.5,2625.4,1.3599378]
[1727256118525,0.38086,2625.5,2625.4,1.7408078]
[1727256118931,0.38086,2625.5,2625.4,1.3599378]
[1727256119719,0.38086,2625.5,2625.4,1.7408078]
[1727256119924,0.38086,2625.5,2625.4,1.3599378]
[1727256120724,0.38086,2625.5,2624.6,2.5934567]
[1727256120725,7.96875,2625.5,2624.6,2.5934567]
[1727256121024,0.38088,2625.3,2625.2,0.3894]
[1727256122026,1.48088,2625.3,2625.2,0.3894]
[1727256123726,2.4331,2625.3,2625.2,0.3894]
[1727256124311,2.4331,2625.3,2624.8,0.3956]
[1727256124312,0.38093,2625.0,2624.8,0.3956]
[1727256124615,0.38093,2625.0,2624.9,0.4016]
[1727256124815,1.48093,2625.0,2624.9,0.4016]
[1727256126819,2.43326,2625.0,2624.9,0.4016]
[1727256129815,1.33336,2624.8,2624.2,1.4934567]
[1727256130123,4.16026,2624.7,2624.3,1.1353]
[1727256130325,0.38102,2624.4,2624.3,1.1353]
[1727256130522,3.2078,2624.4,2624.2,12.51134711]
[1727256130725,3.58882,2624.4,2624.3,0.3706]
[1727256131531,4.68882,2624.4,2624.3,0.3706]
[1727256132427,5.96882,2624.4,2624.3,0.3706]
[1727256132628,3.2078,2624.4,2624.3,0.3706]
[1727256132824,3.58882,2624.4,2624.3,0.3706]
[1727256133019,9.3982,2624.4,2623.6,4.7012567]
[1727256133235,9.3982,2624.4,2624.2,0.3855]
[1727256133236,0.38103,2624.3,2624.2,0.3855]
[1727256133424,3.2078,2624.4,2624.2,0.3855]
[1727256133626,3.58882,2624.4,2624.2,0.3855]
[1727256134031,0.38103,2624.3,2624.2,0.3855]
[1727256134331,3.2078,2624.4,2624.2,0.3855]
[1727256134527,5.5878,2624.5,2624.2,0.3855]
[1727256134724,0.38102,2624.4,2624.2,0.3855]
[1727256134925,0.38102,2624.4,2624.2,0.76654]
[1727256136638,5.5878,2624.5,2624.2,0.3855]
[1727256136828,5.5878,2624.5,2624.3,0.38102]
[1727256137025,0.38102,2624.4,2624.3,0.38102]
[1727256137335,5.96881,2624.5,2624.3,0.38102]
[1727256137825,0.38102,2624.4,2624.3,0.38102]
[1727256138024,0.38102,2624.4,2624.2,0.3855]
[1727256138734,5.5878,2624.5,2624.2,0.3855]
[1727256138735,5.96881,2624.5,2624.2,0.3855]
[1727256138932,0.38103,2624.3,2624.2,0.76654]
[1727256139335,0.38103,2624.3,2624.2,0.3855]
[1727256141036,2.76103,2624.3,2624.2,0.3855]
[1727256142836,0.38102,2624.4,2624.2,0.76654]
[1727256143138,3.2078,2624.5,2624.2,0.3855]
[1727256143348,3.2078,2624.5,2624.4,0.38102]
[1727256143533,3.58881,2624.5,2624.3,0.38102]
[1727256144638,3.2078,2624.5,2624.4,0.38102]
[1727256145233,3.2078,2624.5,2624.3,0.38103]
[1727256145429,0.38102,2624.4,2624.3,0.38103]
[1727256145743,3.58881,2624.5,2624.4,0.38102]
[1727256146835,3.2078,2624.5,2624.4,0.38102]
[1727256147444,3.5888,2624.5,2624.4,0.38102]
[1727256148543,3.2078,2624.5,2624.2,0.3855]
[1727256148746,3.58881,2624.5,2624.4,0.38102]
[1727256151052,0.38103,2624.3,2624.2,0.76654]
[1727256151346,5.96881,2624.5,2624.4,0.38102]
[1727256151546,3.58881,2624.5,2624.4,0.38102]
[1727256152440,4.68881,2624.5,2624.4,0.38102]
[1727256152944,0.38102,2624.4,2624.3,0.75612]
[1727256153742,1.48102,2624.4,2624.3,0.75612]
[1727256154240,1.48102,2624.4,2624.3,0.75613]
[1727256154848,1.48102,2624.4,2624.3,0.3751]
[1727256155045,1.48102,2624.4,2624.3,0.75613]
[1727256156647,1.48102,2624.4,2624.3,0.3751]
[1727256157442,1.48102,2624.4,2624.3,0.75613]
[1727256157947,1.48102,2624.4,2624.3,0.3751]
[1727256158651,1.48102,2624.4,2624.3,0.75613]
[1727256159339,1.48102,2624.4,2624.3,0.3751]
[1727256160147,1.33357,2624.4,2624.3,0.3751]
[1727256160452,2.83017,2624.4,2624.3,0.3751]
[1727256161747,0.38103,2624.3,2624.2,0.3855]
[1727256161939,0.38103,2624.3,2624.1,0.3862]
[1727256161940,1.87762,2624.4,2623.8,4.7012567]
[1727256162140,1.1,2624.0,2623.9,1.54888]
[1727256162848,3.2078,2624.1,2623.9,1.54888]
[1727256163354,3.2078,2624.1,2624.0,0.38107]
[1727256164150,3.2078,2624.1,2623.9,1.54888]
[1727256164452,3.58887,2624.1,2623.9,1.54888]
[1727256165453,0.38107,2624.0,2623.9,1.54888]
[1727256165853,0.38107,2624.0,2623.9,5.36008]
[1727256166358,0.38107,2624.0,2623.9,1.54888]
[1727256166656,0.38107,2624.0,2623.9,5.36008]
[1727256167157,0.38107,2624.0,2623.9,1.54888]
[1727256169455,2.05263,2624.2,2624.0,0.38106]
[1727256169456,0.38107,2624.1,2624.0,0.38106]
[1727256169752,0.38105,2624.2,2624.1,0.38104]
[1727256172060,1.48105,2624.2,2624.1,0.38106]
[1727256174456,1.48105,2624.2,2624.1,1.33308841]
[1727256174658,1.48105,2624.2,2624.1,0.38106]
[1727256174858,1.48105,2624.2,2624.1,3.20763053]
[1727256176057,1.48105,2624.2,2624.1,2.82657053]
[1727256177060,1.48105,2624.2,2624.1,3.20763053]
[1727256178663,1.48105,2624.2,2624.1,2.82657053]
[1727256178959,1.48105,2624.2,2624.1,3.20763053]
[1727256178960,1.1,2624.2,2624.1,3.20763053]
[1727256179759,1.48104,2624.2,2624.1,2.82689483]
[1727256180367,1.48104,2624.2,2624.1,3.20795483]
[1727256181256,1.48104,2624.2,2624.1,2.82689483]
[1727256181964,3.96891006,2624.2,2624.0,0.38106]
[1727256182368,3.96891006,2624.2,2624.1,0.38106]
[1727256182860,3.58787006,2624.2,2624.1,0.38106]
[1727256183268,1.1,2624.2,2624.1,0.38106]
[1727256183662,1.48104,2624.2,2624.1,0.38106]
[1727256183855,1.1,2624.2,2624.1,0.38106]
[1727256184059,1.48104,2624.2,2624.1,0.38106]
[1727256184269,2.86891006,2624.3,2624.2,0.38104]
[1727256184567,0.38104,2624.2,2624.1,0.38105]
[1727256185665,3.58787006,2624.3,2623.9,1.1678]
[1727256185666,3.96891006,2624.3,2624.2,0.38104]
[1727256185974,2.48787006,2624.6,2624.4,0.38102]
[1727256186164,0.355,2625.1,2625.0,0.38093]
[1727256186464,0.355,2625.1,2624.6,0.95247]
[1727256186465,0.38092,2625.1,2624.9,0.38094]
[1727256186668,0.38092,2625.1,2625.0,0.372]
[1727256186861,0.38091,2625.2,2625.0,1.13823]
[1727256187059,4.6887,2625.3,2625.1,0.38091]
[1727256187370,0.3809,2625.2,2625.0,1.13822]
[1727256187759,4.3078,2625.3,2625.0,0.7573]
[1727256188173,0.3809,2625.2,2625.0,0.7573]
[1727256188871,0.38091,2625.1,2625.0,0.7573]
[1727256189073,1.1,2625.1,2625.0,0.7573]
[1727256193571,1.1,2625.1,2625.0,1.13823]
[1727256194167,1.1,2625.1,2625.0,0.7573]
[1727256195568,1.1,2625.1,2625.0,1.13823]
[1727256196467,1.1,2625.1,2625.0,0.7573]
[1727256196866,1.48091,2625.1,2625.0,0.7573]
[1727256197066,1.4666,2625.1,2625.0,0.372]
[1727256197774,1.4666,2625.1,2625.0,0.7649]
[1727256198582,1.4666,2625.1,2625.0,1.14583]
[1727256200279,1.1,2625.1,2625.0,1.14583]
[1727256201869,1.1,2625.1,2625.0,0.7649]
[1727256202062,1.1,2625.1,2625.0,1.14583]
[1727256202483,1.48091,2625.1,2625.0,1.14583]
[1727256202862,1.48091,2625.1,2625.0,0.7649]
[1727256203063,15.0697,2625.1,2624.4,4.70671917]
[1727256203278,0.7384,2625.0,2624.6,1.17818]
[1727256203478,0.38096,2624.8,2624.6,1.17818]
[1727256204171,0.38095,2624.9,2624.7,0.38097]
[1727256204481,1.1,2624.8,2624.7,0.38097]
[1727256204667,1.48096,2624.8,2624.6,1.17818]
[1727256205161,0.38097,2624.7,2624.6,0.7972]
[1727256205779,1.48097,2624.8,2624.6,0.7972]
[1727256205971,1.48097,2624.8,2624.6,1.17819]
[1727256208169,1.1,2624.8,2624.7,0.38097]
[1727256208368,1.48096,2624.8,2624.6,1.17818]
[1727256210569,1.48096,2624.8,2624.7,0.38097]
[1727256210764,1.48096,2624.8,2624.6,1.17818]
[1727256211682,1.48096,2624.8,2624.6,1.17817]
[1727256214277,0.38097,2624.7,2624.6,1.17817]
[1727256215785,1.48097,2624.8,2624.7,0.38097]
[1727256216177,1.48097,2624.8,2624.6,1.17817]
[1727256216382,0.38097,2624.7,2624.6,1.17817]
[1727256217088,0.38097,2624.7,2624.6,0.7972]
[1727256217675,0.38097,2624.7,2624.6,1.17819]
[1727256217877,0.38097,2624.7,2624.6,0.7972]
[1727256218078,0.38097,2624.7,2624.6,1.17819]
[1727256218984,1.48097,2624.8,2624.6,1.17819]
[1727256219290,0.38097,2624.7,2624.6,1.17819]
[1727256219676,1.48096,2624.8,2624.6,1.17819]
[1727256220890,0.38097,2624.7,2624.6,1.17819]
[1727256221191,0.38097,2624.7,2624.6,0.7972]
[1727256223396,0.75697,2624.7,2624.6,0.7972]
[1727256224485,0.75697,2624.7,2624.0,3.2078]
[1727256224486,0.38104,2624.2,2624.0,3.2078]
[1727256224690,0.38104,2624.2,2624.1,0.3975]
[1727256224991,0.38104,2624.2,2624.1,0.77856]
[1727256225287,1.48104,2624.3,2624.1,0.77856]
[1727256225483,1.1,2624.3,2624.2,0.38104]
[1727256225685,1.1,2624.4,2624.1,0.3975]
[1727256225878,1.1,2624.4,2624.3,0.38103]
[1727256226188,0.381,2624.5,2624.2,0.783]
[1727256226386,0.381,2624.5,2624.4,0.38101]
[1727256228684,1.481,2624.6,2624.4,0.38101]
[1727256228884,1.481,2624.6,2624.5,0.3752]
[1727256229084,1.481,2624.6,2624.5,0.7594]
[1727256229888,4.6888,2624.6,2624.5,0.7594]
[1727256230281,4.6888,2624.6,2624.5,1.1404]
[1727256231290,4.6888,2624.6,2624.5,0.7594]
[1727256232280,1.481,2624.6,2624.5,0.7594]
[1727256232483,4.6888,2624.6,2624.5,0.7594]
[1727256234096,1.481,2624.6,2624.5,0.7594]
[1727256234289,4.6888,2624.6,2624.5,0.7594]
[1727256236091,4.6888,2624.6,2624.5,1.1404]
[1727256236482,4.6888,2624.6,2624.5,0.7594]
[1727256237597,1.481,2624.6,2624.5,0.7594]
[1727256237784,4.6888,2624.6,2624.5,0.7594]
[1727256241787,4.6888,2624.6,2624.3,1.38778702]
[1727256241788,0.95251,2624.5,2624.3,1.38778702]
[1727256241989,0.38103,2624.3,2624.2,1.38248702]
[1727256242203,0.38103,2624.3,2624.2,0.3842]
[1727256242789,1.48103,2624.3,2624.2,0.3842]
[1727256243495,5.64141,2624.3,2624.2,0.3842]
[1727256243700,1.33371,2624.1,2624.0,0.3895]
[1727256243903,1.48106,2624.1,2624.0,0.3895]
[1727256245002,1.48106,2624.1,2623.9,0.3719]
[1727256245003,0.38107,2624.0,2623.9,0.3719]
[1727256245304,5.14496,2624.0,2623.9,0.3719]
[1727256245601,8.35276,2624.0,2623.9,0.3719]
[1727256247587,7.97169,2624.0,2623.7,0.3779]
[1727256247793,1.4811,2623.8,2623.7,0.7556]
[1727256251105,1.1,2623.8,2623.7,0.7556]
[1727256251495,1.4811,2623.8,2623.7,0.7556]
[1727256252991,1.1,2623.8,2623.7,0.7556]
[1727256253709,1.1,2623.8,2623.7,1.13672]
[1727256254207,1.4811,2623.8,2623.7,0.7556]
[1727256256310,1.4811,2623.8,2623.7,1.1425]
[1727256257307,1.1,2623.8,2623.7,1.52362]
[1727256257694,0.61315742,2624.2,2623.7,1.52362]
[1727256257695,3.2078,2624.3,2623.8,0.95276]
[1727256257905,3.2078,2624.3,2624.2,0.38104]
[1727256258106,5.46294,2624.5,2624.4,0.38102]
[1727256258107,4.109,2624.5,2624.4,0.38102]
[1727256258507,5.209,2624.5,2624.4,0.38102]
[1727256259613,4.109,2624.5,2624.4,0.38102]
[1727256259797,5.209,2624.5,2624.4,0.38102]
[1727256260000,1.1,2624.5,2624.3,0.38102]
[1727256260497,1.1,2624.5,2624.4,0.38102]
[1727256261403,1.1,2624.5,2624.3,0.38102]
[1727256262600,1.1,2624.4,2624.3,0.38102]
[1727256263001,1.1,2624.4,2624.2,1.49064]
[1727256263306,1.1,2624.4,2624.3,0.38103]
[1727256263508,1.1,2624.4,2624.2,1.1096]
[1727256263509,1.48102,2624.4,2624.2,1.1096]
[1727256263701,1.87822,2624.4,2624.2,1.1096]
[1727256264311,1.4972,2624.4,2624.2,1.1096]
[1727256264608,1.4972,2624.4,2624.2,0.7348]
[1727256264800,1.4972,2624.4,2624.2,1.11584]
[1727256265401,1.1,2624.4,2624.3,0.38103]
[1727256265707,0.3898,2624.8,2624.3,0.3799]
[1727256265899,1.1,2624.8,2624.7,0.38097]
[1727256266105,1.1,2624.8,2624.6,0.38098]
[1727256266311,1.1,2624.8,2624.7,0.7806]
[1727256266609,1.1,2624.8,2624.7,1.1605]
[1727256266806,1.48096,2624.8,2624.7,1.1605]
[1727256267012,5.29056,2624.8,2624.7,1.1605]
[1727256267215,1.48096,2624.8,2624.7,1.1605]
[1727256268306,0.38096,2624.8,2624.7,1.1605]
[1727256273821,2.86365464,2624.8,2624.7,1.1605]
[1727256274009,0.38096,2624.8,2624.7,1.1605]
[1727256275919,4.19056,2624.8,2624.7,1.1605]
[1727256276218,8.82994464,2624.9,2624.7,1.54147]
[1727256276517,8.82994464,2624.9,2624.7,1.1605]
[1727256276721,0.38096,2624.8,2624.7,1.1605]
[1727256281526,0.38096,2624.8,2624.7,0.3966]
[1727256281725,0.95244,2624.7,2624.4,0.7659]
[1727256282029,0.38102,2624.4,2624.3,0.3885]
[1727256282218,6.91878,2624.6,2624.3,0.3885]
[1727256282419,0.38102,2624.4,2624.2,0.38103]
[1727256282624,5.5878,2624.3,2624.1,0.38105]
[1727256282922,5.5878,2624.3,2624.2,0.3885]
[1727256283128,5.5878,2624.3,2624.2,0.76954]
[1727256284126,2.38,2624.3,2624.2,0.76954]
[1727256284320,6.1904,2624.3,2624.2,0.76954]
[1727256284921,6.57143,2624.3,2624.2,0.3885]
[1727256285313,6.1904,2624.3,2624.2,0.76954]
[1727256285526,6.57143,2624.3,2624.2,0.3885]
[1727256289530,6.94643,2624.3,2624.2,0.3885]
[1727256290328,5.66643,2624.3,2624.2,0.3885]
[1727256290830,5.66643,2624.3,2624.2,0.769]
[1727256291221,8.87423,2624.3,2624.2,0.769]
[1727256293923,8.49923,2624.3,2624.2,0.769]
[1727256297733,4.68883,2624.3,2624.2,0.769]
[1727256297927,4.68883,2624.3,2624.2,1.1717]
[1727256301030,4.3078,2624.3,2624.2,1.55274]
[1727256301230,4.68883,2624.3,2624.2,1.55274]
[1727256302931,1.48103,2624.3,2624.2,1.55274]
[1727256303440,1.1,2624.3,2624.2,1.55274]
[1727256303942,1.48103,2624.3,2624.2,1.55274]
[1727256304241,1.1,2624.3,2624.2,1.55274]
[1727256304633,3.2078,2624.6,2624.5,0.381]
[1727256305327,3.2078,2624.6,2624.5,0.7701]
[1727256308139,1.48097,2624.8,2624.7,0.38097]
[1727256317342,6.19324407,2625.0,2624.6,0.7802]
[1727256317551,2.49026584,2624.7,2624.6,2.11365]
[1727256317748,0.38095,2624.9,2624.8,0.38096]
[1727256319653,1.48095,2624.9,2624.8,0.38096]
[1727256320952,0.38097,2624.8,2624.7,0.38097]
[1727256321450,1.48097,2624.8,2624.7,0.38097]
[1727256322250,0.38097,2624.7,2624.6,0.7802]
[1727256322446,0.38097,2624.7,2624.6,1.16119]
[1727256322651,0.38097,2624.7,2624.6,0.7802]
[1727256323351,1.1,2624.8,2624.6,1.16119]
[1727256323553,0.38097,2624.7,2624.6,1.16119]
[1727256326757,0.38097,2624.7,2624.6,0.7802]
[1727256328258,3.58877,2624.7,2624.6,0.3836]
[1727256330662,3.58877,2624.7,2624.6,0.76459]
[1727256331056,0.38097,2624.7,2624.6,0.76459]
[1727256331451,0.38097,2624.7,2624.6,0.3836]
[1727256331951,3.58877,2624.7,2624.6,0.3836]
[1727256334963,0.38102,2624.4,2624.3,0.3838]
[1727256335261,0.38103,2624.3,2624.2,0.3704]
[1727256336873,0.38104,2624.2,2624.1,0.3651]
[1727256337071,0.38106,2624.1,2624.0,0.3992]
[1727256337272,3.58886,2624.1,2624.0,0.3992]
[1727256337471,3.58886,2624.1,2623.9,0.7355]
[1727256337667,3.58887,2624.1,2623.9,0.7355]
[1727256337868,1.48107,2624.0,2623.9,0.7355]
[1727256338466,1.1,2624.0,2623.9,0.7355]
[1727256338669,1.48107,2624.0,2623.9,0.7355]
[1727256338867,1.1,2624.0,2623.9,0.7355]
[1727256339677,1.48107,2624.0,2623.9,0.7355]
[1727256340283,1.1,2624.0,2623.9,0.7355]
[1727256340480,3.58886,2624.1,2623.9,0.7355]
[1727256341679,0.38107,2624.0,2623.9,0.7355]
[1727256343292,1.48107,2624.0,2623.9,0.7355]
[1727256346182,0.38107,2624.0,2623.9,0.7355]
[1727256348584,5.4488608,2624.7,2623.9,6.64498702]
[1727256348585,0.95254,2624.5,2623.9,6.64498702]
[1727256348782,0.38103,2624.3,2624.1,1.48105]
[1727256348979,0.38103,2624.3,2624.2,0.3792]
[1727256349193,0.38103,2624.3,2624.2,0.776]
[1727256350186,4.16034,2624.5,2624.2,0.776]
[1727256350187,3.2078,2624.5,2624.2,0.776]
[1727256350497,0.38102,2624.4,2624.3,0.3959]
[1727256360200,0.95258,2624.3,2624.0,0.99734878]
[1727256360397,0.38104,2624.2,2624.1,1.1228]
[1727256360704,3.58884,2624.2,2624.1,1.1228]
[1727256360901,5.64146,2624.2,2624.1,0.3775]
[1727256361599,4.68884,2624.2,2624.1,0.3775]
[1727256364000,5.64146,2624.2,2624.1,0.3775]
[1727256368408,3.2078,2624.2,2624.1,1.85856]
[1727256368600,3.58884,2624.2,2624.1,1.4775]
[1727256369102,3.58884,2624.2,2624.1,0.3775]
[1727256369408,3.2078,2624.2,2624.1,0.75856]
[1727256369706,3.58884,2624.2,2624.1,0.75856]
[1727256370411,3.2078,2624.2,2624.1,0.75856]
[1727256370605,0.38103,2624.3,2624.2,0.38104]
[1727256370905,0.38103,2624.3,2624.2,2.47838878]
[1727256371402,0.38103,2624.3,2624.2,2.86688878]
[1727256371910,0.38103,2624.3,2624.2,4.26652869]
[1727256372105,0.38103,2624.3,2624.2,3.16655916]
[1727256372307,0.38103,2624.3,2624.2,1.76688878]
[1727256372614,0.38103,2624.3,2624.2,3.16666567]
[1727256374103,0.38103,2624.3,2624.2,2.16931689]
[1727256375008,0.38103,2624.3,2624.2,3.16776295]
[1727256375209,0.38103,2624.3,2624.2,2.16931689]
[1727256375407,0.38103,2624.3,2624.2,2.16959952]
[1727256376108,0.38103,2624.3,2624.2,3.66851869]
[1727256378311,0.38103,2624.3,2624.2,2.16959952]
[1727256378514,0.38103,2624.3,2624.2,3.66851869]
[1727256379917,3.58881,2624.5,2624.4,0.38102]
[1727256380220,3.2078,2624.5,2624.4,2.47977562]
[1727256380613,3.2078,2624.5,2624.4,3.88024457]
[1727256381417,3.5888,2624.5,2624.4,3.88024457]
[1727256381610,3.5888,2624.5,2624.4,0.99875562]
[1727256381819,3.5888,2624.5,2624.4,1.37977562]